[Event "2026 European Womens Championship"]
[Site "Batumi, GE"]
[Date "2026.06.02"]
[Round "8"]
[White "Rodriguez Redondo, Adhara"]
[Black "Nadanyan, Kiti"]
[Result "0-1"]
[Board "48"]
[TimeControl "5400+30"]
[WhiteFideId "32065698"]
[BlackFideId "13316710"]
[WhiteElo "2200"]
[BlackElo "1801"]
[WhiteTitle "WFM"]
[WhiteClock "0:29:12"]
[BlackClock "0:28:30"]
[Variant "Standard"]

1. e4 {[%clk 1:30:57]}  c6 {[%clk 1:29:36]} 2. d4 {[%clk 1:31:20]}  d5 {[%clk 1:29:32]} 3. e5 {[%clk 1:31:45]}  c5 {[%clk 1:29:26]}
4. dxc5 {[%clk 1:32:08]}  e6 {[%clk 1:29:50]} 5. Nf3 {[%clk 1:32:27]}  Bxc5 {[%clk 1:29:59]} 6. Bd3 {[%clk 1:32:52]}  Nc6 {[%clk 1:29:57]}
7. O-O {[%clk 1:33:09]}  Nge7 {[%clk 1:29:47]} 8. c3 {[%clk 1:33:00]}  Ng6 {[%clk 1:29:04]} 9. Re1 {[%clk 1:32:45]}  O-O {[%clk 1:23:27]}
10. b4 {[%clk 1:32:39]}  Bb6 {[%clk 1:20:28]} 11. b5 {[%clk 1:32:02]}  Na5 {[%clk 1:05:40]} 12. Ng5 {[%clk 1:12:52]}  h6 {[%clk 0:53:19]}
13. Nf3 {[%clk 1:11:42]}  Bc5 {[%clk 0:44:33]} 14. Qc2 {[%clk 1:06:45]}  Qb6 {[%clk 0:37:21]} 15. Re2 {[%clk 1:00:19]}  Bd7 {[%clk 0:26:15]}
16. a4 {[%clk 0:38:25]}  Be8 {[%clk 0:26:00]} 17. Be3 {[%clk 0:34:48]}  Rc8 {[%clk 0:25:47]} 18. Nbd2 {[%clk 0:28:51]}  Qc7 {[%clk 0:21:10]}
19. Bxg6 {[%clk 0:23:21]}  fxg6 {[%clk 0:21:33]} 20. Nd4 {[%clk 0:23:11]}  Bf7 {[%clk 0:13:05]} 21. Qd3 {[%clk 0:20:08]}  g5 {[%clk 0:12:10]}
22. Ree1 {[%clk 0:18:10]}  Be7 {[%clk 0:12:14]} 23. Rac1 {[%clk 0:15:32]}  Nc4 {[%clk 0:11:44]} 24. Nxc4 {[%clk 0:15:47]}  Qxc4 {[%clk 0:12:10]}
25. Qd1 {[%clk 0:13:30]}  Ba3 {[%clk 0:11:52]} 26. Rc2 {[%clk 0:12:53]}  Rfe8 {[%clk 0:07:11]} 27. h4 {[%clk 0:10:08]}  Bg6 {[%clk 0:05:24]}
28. Rd2 {[%clk 0:10:31]}  Qxc3 {[%clk 0:03:49]} 29. hxg5 {[%clk 0:09:01]}  h5 {[%clk 0:03:53]} 30. Ne2 {[%clk 0:08:52]}  Qxe5 {[%clk 0:03:42]}
31. Qb3 {[%clk 0:05:46]}  Bf8 {[%clk 0:03:33]} 32. Nf4 {[%clk 0:04:40]}  Bf5 {[%clk 0:01:31]} 33. Nxh5 {[%clk 0:03:25]}  Rc4 {[%clk 0:01:50]}
34. Ng3 {[%clk 0:03:02]}  Bb4 {[%clk 0:01:28]} 35. Rde2 {[%clk 0:02:16]}  Bxe1 {[%clk 0:01:43]} 36. Rxe1 {[%clk 0:01:48]}  Bc2 {[%clk 0:01:59]}
37. Qa2 {[%clk 0:00:47]}  Rec8 {[%clk 0:01:36]} 38. Bd2 {[%clk 0:00:52]}  Qd4 {[%clk 0:01:50]} 39. Be3 {[%clk 0:00:51]}  Qc3 {[%clk 0:02:01]}
40. Rc1 {[%clk 0:00:45]}  Rxa4 {[%clk 0:01:52]} 41. Qxa4 {[%clk 0:29:22]}  Bxa4 {[%clk 0:32:17]} 42. Rxc3 {[%clk 0:29:47]}  Rxc3 {[%clk 0:32:45]}
43. Ne2 {[%clk 0:29:42]}  Rc4 {[%clk 0:28:33]} 44. Bxa7 {[%clk 0:28:40]}  Bxb5 {[%clk 0:28:46]} 45. Nd4 {[%clk 0:29:00]}  Bd7 {[%clk 0:29:12]}
46. f4 {[%clk 0:28:58]}  b5 {[%clk 0:27:38]} 47. Kf2 {[%clk 0:29:07]}  b4 {[%clk 0:28:03]} 48. Ke2 {[%clk 0:29:23]}  Ba4 {[%clk 0:28:12]}
49. Nxe6 {[%clk 0:29:12]}  Re4+ {[%clk 0:28:30]} 0-1

[Event "2026 European Womens Championship"]
[Site "Batumi, GE"]
[Date "2026.06.02"]
[Round "8"]
[White "Venskaya, Nika"]
[Black "Maisuradze, Nino"]
[Result "1-0"]
[Board "49"]
[TimeControl "5400+30"]
[WhiteFideId "13523503"]
[BlackFideId "13601717"]
[WhiteElo "1937"]
[BlackElo "2198"]
[WhiteTitle "WCM"]
[BlackTitle "WGM"]
[WhiteClock "0:01:35"]
[BlackClock "0:00:48"]
[Variant "Standard"]

1. d4 {[%clk 1:30:56]}  Nf6 {[%clk 1:30:58]} 2. c4 {[%clk 1:31:13]}  c5 {[%clk 1:31:24]} 3. d5 {[%clk 1:31:37]}  e6 {[%clk 1:31:49]}
4. Nc3 {[%clk 1:31:58]}  exd5 {[%clk 1:32:17]} 5. cxd5 {[%clk 1:32:21]}  d6 {[%clk 1:32:45]} 6. e4 {[%clk 1:32:39]}  g6 {[%clk 1:33:11]}
7. f4 {[%clk 1:32:26]}  Bg7 {[%clk 1:33:32]} 8. Bb5+ {[%clk 1:32:51]}  Nfd7 {[%clk 1:33:58]} 9. a4 {[%clk 1:33:11]}  O-O {[%clk 1:34:24]}
10. Nf3 {[%clk 1:33:31]}  Na6 {[%clk 1:34:43]} 11. O-O {[%clk 1:33:50]}  Nb4 {[%clk 1:35:11]} 12. Re1 {[%clk 1:34:08]}  a6 {[%clk 1:35:12]}
13. Bf1 {[%clk 1:34:19]}  Re8 {[%clk 1:35:36]} 14. h3 {[%clk 1:31:21]}  f5 {[%clk 1:35:52]} 15. Bd2 {[%clk 1:07:01]}  h6 {[%clk 1:29:17]}
16. Qb3 {[%clk 0:56:36]}  b6 {[%clk 1:16:27]} 17. g3 {[%clk 0:47:31]}  Ra7 {[%clk 1:13:49]} 18. Kh2 {[%clk 0:45:14]}  Kh8 {[%clk 1:10:10]}
19. Bg2 {[%clk 0:39:08]}  Nd3 {[%clk 0:44:42]} 20. Re3 {[%clk 0:36:59]}  Rc7 {[%clk 0:34:45]} 21. Nh4 {[%clk 0:24:54]}  Nf8 {[%clk 0:29:01]}
22. Qxb6 {[%clk 0:12:17]}  Nb4 {[%clk 0:23:29]} 23. Rc1 {[%clk 0:18:48]}  Bd4 {[%clk 0:16:44]} 24. Re2 {[%clk 0:18:25]}  Nd3 {[%clk 0:11:39]}
25. Rf1 {[%clk 0:15:35]}  Rb7 {[%clk 0:10:26]} 26. Qxd8 {[%clk 0:09:30]}  Rxd8 {[%clk 0:10:54]} 27. Bc1 {[%clk 0:07:30]}  Rb3 {[%clk 0:10:25]}
28. Rd1 {[%clk 0:06:58]}  c4 {[%clk 0:09:31]} 29. e5 {[%clk 0:06:08]}  Bxc3 {[%clk 0:04:47]} 30. bxc3 {[%clk 0:05:24]}  Rb1 {[%clk 0:04:53]}
31. e6 {[%clk 0:02:13]}  Re8 {[%clk 0:05:20]} 32. Rc2 {[%clk 0:02:12]}  Bb7 {[%clk 0:05:15]} 33. g4 {[%clk 0:01:38]}  fxg4 {[%clk 0:04:11]}
34. hxg4 {[%clk 0:01:26]}  Nxf4 {[%clk 0:04:04]} 35. Rd4 {[%clk 0:01:28]}  Nxg2 {[%clk 0:03:17]} 36. Nxg2 {[%clk 0:01:50]}  g5 {[%clk 0:01:34]}
37. Ba3 {[%clk 0:01:54]}  Nxe6 {[%clk 0:00:35]} 38. dxe6 {[%clk 0:01:59]}  Rxe6 {[%clk 0:01:02]} 39. Bxd6 {[%clk 0:01:20]}  Bxg2 {[%clk 0:00:37]}
40. Kxg2 {[%clk 0:01:26]}  Ree1 {[%clk 0:00:48]} 41. Bh2 {[%clk 0:01:35]} 1-0

[Event "2026 European Womens Championship"]
[Site "Batumi, GE"]
[Date "2026.06.02"]
[Round "8"]
[White "Urh, Zala"]
[Black "Lomaia, Diana"]
[Result "1/2-1/2"]
[Board "50"]
[TimeControl "5400+30"]
[WhiteFideId "14611481"]
[BlackFideId "13612476"]
[WhiteElo "2263"]
[BlackElo "2110"]
[WhiteTitle "WIM"]
[BlackTitle "WFM"]
[WhiteClock "0:05:52"]
[BlackClock "0:03:57"]
[Variant "Standard"]

1. d4 {[%clk 1:30:59]}  Nf6 {[%clk 1:30:55]} 2. c4 {[%clk 1:31:25]}  e6 {[%clk 1:31:21]} 3. Nf3 {[%clk 1:31:52]}  b6 {[%clk 1:31:26]}
4. g3 {[%clk 1:32:16]}  Ba6 {[%clk 1:31:14]} 5. b3 {[%clk 1:32:35]}  Bb4+ {[%clk 1:31:39]} 6. Bd2 {[%clk 1:33:00]}  Be7 {[%clk 1:29:49]}
7. Nc3 {[%clk 1:33:18]}  d5 {[%clk 1:29:27]} 8. cxd5 {[%clk 1:33:42]}  exd5 {[%clk 1:29:39]} 9. Bg2 {[%clk 1:33:59]}  O-O {[%clk 1:29:43]}
10. O-O {[%clk 1:34:23]}  Bb7 {[%clk 1:27:40]} 11. Ne5 {[%clk 1:33:06]}  Nbd7 {[%clk 1:25:35]} 12. a4 {[%clk 1:32:33]}  c5 {[%clk 1:20:51]}
13. Bf4 {[%clk 1:32:03]}  cxd4 {[%clk 1:12:35]} 14. Nb5 {[%clk 1:09:10]}  a6 {[%clk 1:08:15]} 15. Nxd4 {[%clk 1:08:36]}  Nxe5 {[%clk 1:08:13]}
16. Bxe5 {[%clk 1:09:03]}  Bd6 {[%clk 1:00:22]} 17. Bxd6 {[%clk 1:04:56]}  Qxd6 {[%clk 1:00:46]} 18. Qd3 {[%clk 1:05:20]}  Ne4 {[%clk 0:58:23]}
19. Rfd1 {[%clk 0:51:37]}  Qf6 {[%clk 0:57:21]} 20. Qf3 {[%clk 0:49:15]}  Qxf3 {[%clk 0:55:20]} 21. Bxf3 {[%clk 0:49:28]}  g6 {[%clk 0:54:58]}
22. Nc2 {[%clk 0:34:56]}  Rfd8 {[%clk 0:52:09]} 23. Rd4 {[%clk 0:34:07]}  Nc5 {[%clk 0:49:09]} 24. Rb1 {[%clk 0:33:31]}  Ne6 {[%clk 0:48:55]}
25. Rd2 {[%clk 0:33:18]}  Ng5 {[%clk 0:46:13]} 26. Bg2 {[%clk 0:28:00]}  Ne4 {[%clk 0:43:24]} 27. Rd4 {[%clk 0:26:21]}  Nc3 {[%clk 0:40:04]}
28. Re1 {[%clk 0:26:46]}  Rac8 {[%clk 0:38:57]} 29. Ne3 {[%clk 0:26:30]}  Kf8 {[%clk 0:37:39]} 30. Bf3 {[%clk 0:24:39]}  Ba8 {[%clk 0:36:20]}
31. Kg2 {[%clk 0:23:23]}  Rc5 {[%clk 0:28:53]} 32. h4 {[%clk 0:17:26]}  a5 {[%clk 0:25:00]} 33. h5 {[%clk 0:15:28]}  b5 {[%clk 0:24:19]}
34. hxg6 {[%clk 0:13:46]}  hxg6 {[%clk 0:24:21]} 35. Rh1 {[%clk 0:11:49]}  bxa4 {[%clk 0:23:53]} 36. bxa4 {[%clk 0:12:13]}  Bc6 {[%clk 0:21:51]}
37. Ra1 {[%clk 0:04:32]}  Rb8 {[%clk 0:19:57]} 38. Ra3 {[%clk 0:01:52]}  Rb1 {[%clk 0:08:08]} 39. Rd3 {[%clk 0:00:55]}  Ne4 {[%clk 0:04:57]}
40. Rdb3 {[%clk 0:00:36]}  Rxb3 {[%clk 0:01:59]} 41. Rxb3 {[%clk 0:30:07]}  Nc3 {[%clk 0:31:25]} 42. Ra3 {[%clk 0:21:33]}  d4 {[%clk 0:27:44]}
43. Bxc6 {[%clk 0:19:01]}  Rxc6 {[%clk 0:27:48]} 44. Ng4 {[%clk 0:19:16]}  Nxe2 {[%clk 0:26:34]} 45. Ne5 {[%clk 0:19:05]}  Rc3 {[%clk 0:24:53]}
46. Ra2 {[%clk 0:19:22]}  Nc1 {[%clk 0:24:44]} 47. Rd2 {[%clk 0:19:42]}  Nb3 {[%clk 0:24:33]} 48. Rd1 {[%clk 0:20:08]}  Kg7 {[%clk 0:23:15]}
49. Kf1 {[%clk 0:17:55]}  Kf6 {[%clk 0:20:46]} 50. Nd3 {[%clk 0:17:30]}  Ke6 {[%clk 0:20:28]} 51. Re1+ {[%clk 0:14:35]}  Kd6 {[%clk 0:18:59]}
52. Ne5 {[%clk 0:14:07]}  Rc7 {[%clk 0:19:14]} 53. f4 {[%clk 0:14:14]}  Nd2+ {[%clk 0:16:52]} 54. Ke2 {[%clk 0:12:35]}  Nb3 {[%clk 0:13:39]}
55. Rb1 {[%clk 0:11:18]}  Rc3 {[%clk 0:11:14]} 56. Nxf7+ {[%clk 0:09:33]}  Ke6 {[%clk 0:07:41]} 57. Ne5 {[%clk 0:09:12]}  Rxg3 {[%clk 0:06:14]}
58. Nxg6 {[%clk 0:02:03]}  Kf5 {[%clk 0:05:47]} 59. Ne5 {[%clk 0:01:56]}  Re3+ {[%clk 0:05:05]} 60. Kd1 {[%clk 0:00:57]}  Kxf4 {[%clk 0:05:03]}
61. Nc4 {[%clk 0:00:51]}  Rd3+ {[%clk 0:04:05]} 62. Ke2 {[%clk 0:01:00]}  Rc3 {[%clk 0:03:35]} 63. Nd2 {[%clk 0:00:42]}  Re3+ {[%clk 0:00:48]}
64. Kd1 {[%clk 0:01:02]}  Nc5 {[%clk 0:00:45]} 65. Rb5 {[%clk 0:00:43]}  Nxa4 {[%clk 0:00:46]} 66. Rxa5 {[%clk 0:01:01]}  Nc3+ {[%clk 0:00:48]}
67. Kc2 {[%clk 0:01:25]}  Ne4 {[%clk 0:00:39]} 68. Nxe4 {[%clk 0:01:21]}  Kxe4 {[%clk 0:00:52]} 69. Ra8 {[%clk 0:00:58]}  Re2+ {[%clk 0:00:55]}
70. Kd1 {[%clk 0:01:24]}  Rh2 {[%clk 0:01:15]} 71. Ra3 {[%clk 0:01:45]}  Kd5 {[%clk 0:01:00]} 72. Rg3 {[%clk 0:01:51]}  Kc4 {[%clk 0:01:26]}
73. Rf3 {[%clk 0:02:15]}  Rg2 {[%clk 0:01:21]} 74. Rh3 {[%clk 0:02:39]}  Rb2 {[%clk 0:01:24]} 75. Rg3 {[%clk 0:02:49]}  Rb3 {[%clk 0:01:23]}
76. Rxb3 {[%clk 0:03:06]}  Kxb3 {[%clk 0:01:49]} 77. Kd2 {[%clk 0:03:34]}  Kc4 {[%clk 0:02:14]} 78. Kc2 {[%clk 0:04:02]}  d3+ {[%clk 0:02:41]}
79. Kd2 {[%clk 0:04:30]}  Kd4 {[%clk 0:03:07]} 80. Kd1 {[%clk 0:04:56]}  Ke3 {[%clk 0:03:33]} 81. Ke1 {[%clk 0:05:24]}  d2+ {[%clk 0:03:57]}
82. Kd1 {[%clk 0:05:52]} 1/2-1/2

[Event "2026 European Womens Championship"]
[Site "Batumi, GE"]
[Date "2026.06.02"]
[Round "8"]
[White "Szczotka, Klara"]
[Black "Aghaverdiyeva, Maryam"]
[Result "1-0"]
[Board "51"]
[TimeControl "5400+30"]
[WhiteFideId "21858845"]
[BlackFideId "13452509"]
[WhiteElo "2241"]
[BlackElo "2103"]
[WhiteTitle "WFM"]
[BlackTitle "WFM"]
[WhiteClock "0:15:23"]
[BlackClock "0:19:44"]
[Variant "Standard"]

1. d4 {[%clk 1:30:58]}  d5 {[%clk 1:27:27]} 2. c4 {[%clk 1:31:14]}  c6 {[%clk 1:27:14]} 3. Nf3 {[%clk 1:31:34]}  Nf6 {[%clk 1:27:37]}
4. Nc3 {[%clk 1:31:48]}  e6 {[%clk 1:27:56]} 5. e3 {[%clk 1:32:04]}  Nbd7 {[%clk 1:28:12]} 6. Qc2 {[%clk 1:32:15]}  Bd6 {[%clk 1:28:34]}
7. Bd3 {[%clk 1:31:39]}  O-O {[%clk 1:28:56]} 8. O-O {[%clk 1:29:56]}  dxc4 {[%clk 1:29:18]} 9. Bxc4 {[%clk 1:30:19]}  b5 {[%clk 1:29:43]}
10. Be2 {[%clk 1:30:38]}  Bb7 {[%clk 1:29:59]} 11. Rd1 {[%clk 1:24:57]}  Qb8 {[%clk 1:05:06]} 12. h3 {[%clk 1:18:11]}  b4 {[%clk 1:03:29]}
13. Na4 {[%clk 1:16:52]}  c5 {[%clk 1:03:40]} 14. Nxc5 {[%clk 1:00:17]}  Rc8 {[%clk 1:00:43]} 15. b3 {[%clk 0:50:39]}  Nxc5 {[%clk 0:53:28]}
16. dxc5 {[%clk 0:50:59]}  Rxc5 {[%clk 0:52:34]} 17. Bc4 {[%clk 0:42:41]}  Qc7 {[%clk 0:32:44]} 18. Bb2 {[%clk 0:40:20]}  Bxf3 {[%clk 0:31:21]}
19. gxf3 {[%clk 0:40:43]}  Rg5+ {[%clk 0:31:37]} 20. Kf1 {[%clk 0:40:12]}  Rh5 {[%clk 0:29:58]} 21. Bxf6 {[%clk 0:37:51]}  gxf6 {[%clk 0:29:18]}
22. Qe4 {[%clk 0:38:12]}  Rd8 {[%clk 0:28:16]} 23. f4 {[%clk 0:35:28]}  Kf8 {[%clk 0:24:21]} 24. Rac1 {[%clk 0:32:40]}  Qb6 {[%clk 0:22:47]}
25. Be2 {[%clk 0:22:08]}  Ra5 {[%clk 0:22:33]} 26. Rc6 {[%clk 0:20:41]}  Qb8 {[%clk 0:22:44]} 27. Qxh7 {[%clk 0:20:00]}  Ke7 {[%clk 0:21:20]}
28. Qc2 {[%clk 0:17:50]}  Qb7 {[%clk 0:19:51]} 29. Rdxd6 {[%clk 0:14:34]}  Rxd6 {[%clk 0:17:42]} 30. Rc7+ {[%clk 0:14:56]}  Rd7 {[%clk 0:18:07]}
31. Rxb7 {[%clk 0:15:17]}  Rxb7 {[%clk 0:18:32]} 32. h4 {[%clk 0:15:12]}  Rd7 {[%clk 0:18:23]} 33. h5 {[%clk 0:15:07]}  Rad5 {[%clk 0:18:33]}
34. Bf3 {[%clk 0:15:11]}  R5d6 {[%clk 0:18:35]} 35. h6 {[%clk 0:15:07]}  Kf8 {[%clk 0:18:59]} 36. Qh7 {[%clk 0:14:43]}  Rd8 {[%clk 0:18:21]}
37. Qg7+ {[%clk 0:14:56]}  Ke7 {[%clk 0:18:45]} 38. h7 {[%clk 0:15:07]}  a5 {[%clk 0:18:57]} 39. h8=Q {[%clk 0:15:09]}  Rxh8 {[%clk 0:19:22]}
40. Qxh8 {[%clk 0:15:29]}  Rd2 {[%clk 0:19:44]} 41. Qc8 {[%clk 0:15:23]} 1-0

[Event "2026 European Womens Championship"]
[Site "Batumi, GE"]
[Date "2026.06.02"]
[Round "8"]
[White "Peglau, Charis"]
[Black "Buyuk, Ecrin Efsa"]
[Result "1-0"]
[Board "52"]
[TimeControl "5400+30"]
[WhiteFideId "16219996"]
[BlackFideId "44505175"]
[WhiteElo "2238"]
[BlackElo "2076"]
[WhiteTitle "WFM"]
[BlackTitle "WFM"]
[WhiteClock "0:06:08"]
[BlackClock "0:01:03"]
[Variant "Standard"]

1. d4 {[%clk 1:30:58]}  d5 {[%clk 1:29:19]} 2. c4 {[%clk 1:31:21]}  c6 {[%clk 1:29:44]} 3. Nf3 {[%clk 1:31:31]}  Nf6 {[%clk 1:30:06]}
4. Nc3 {[%clk 1:31:38]}  e6 {[%clk 1:30:19]} 5. e3 {[%clk 1:32:01]}  Bd6 {[%clk 1:29:21]} 6. b3 {[%clk 1:31:49]}  Nbd7 {[%clk 1:27:02]}
7. Bd3 {[%clk 1:30:56]}  O-O {[%clk 1:25:47]} 8. Bb2 {[%clk 1:28:52]}  Re8 {[%clk 1:24:30]} 9. Qc2 {[%clk 1:21:36]}  e5 {[%clk 1:18:27]}
10. cxd5 {[%clk 1:18:01]}  cxd5 {[%clk 1:15:31]} 11. dxe5 {[%clk 1:15:33]}  Nxe5 {[%clk 1:15:35]} 12. O-O-O {[%clk 0:51:02]}  Nxd3+ {[%clk 0:49:19]}
13. Qxd3 {[%clk 0:51:29]}  Bg4 {[%clk 0:47:29]} 14. Kb1 {[%clk 0:33:07]}  Bh5 {[%clk 0:34:35]} 15. Qd4 {[%clk 0:26:29]}  Bg6+ {[%clk 0:34:24]}
16. Ka1 {[%clk 0:26:52]}  Be4 {[%clk 0:34:29]} 17. Nxe4 {[%clk 0:24:49]}  Rxe4 {[%clk 0:34:21]} 18. Qd3 {[%clk 0:25:08]}  Qe7 {[%clk 0:25:36]}
19. Ng5 {[%clk 0:20:01]}  Rg4 {[%clk 0:22:36]} 20. Qf5 {[%clk 0:20:10]}  Ba3 {[%clk 0:13:01]} 21. Bxa3 {[%clk 0:16:44]}  Qxa3 {[%clk 0:13:28]}
22. Nxh7 {[%clk 0:16:58]}  Rg6 {[%clk 0:09:29]} 23. Nxf6+ {[%clk 0:12:21]}  Rxf6 {[%clk 0:09:53]} 24. Qc2 {[%clk 0:12:43]}  a5 {[%clk 0:07:09]}
25. Rxd5 {[%clk 0:10:43]}  a4 {[%clk 0:04:45]} 26. Rhd1 {[%clk 0:10:11]}  g6 {[%clk 0:01:49]} 27. bxa4 {[%clk 0:09:03]}  Rxa4 {[%clk 0:01:21]}
28. R5d3 {[%clk 0:08:55]}  Qb4 {[%clk 0:01:09]} 29. Rd4 {[%clk 0:05:22]}  Rxa2+ {[%clk 0:01:20]} 30. Qxa2 {[%clk 0:05:49]}  Qc5 {[%clk 0:00:43]}
31. Qb2 {[%clk 0:04:51]}  Ra6+ {[%clk 0:00:39]} 32. Kb1 {[%clk 0:05:20]}  Kh7 {[%clk 0:00:38]} 33. Rh4+ {[%clk 0:05:42]}  Kg8 {[%clk 0:01:03]}
34. Rh8# {[%clk 0:06:08]} 1-0

[Event "2026 European Womens Championship"]
[Site "Batumi, GE"]
[Date "2026.06.02"]
[Round "8"]
[White "Rodshtein, Tereza"]
[Black "Dimitrijevic, Aleksandra"]
[Result "0-1"]
[Board "53"]
[TimeControl "5400+30"]
[WhiteFideId "325449"]
[BlackFideId "929239"]
[WhiteElo "2218"]
[BlackElo "2059"]
[WhiteTitle "WGM"]
[BlackTitle "WGM"]
[WhiteClock "0:09:32"]
[BlackClock "0:11:02"]
[Variant "Standard"]

1. e4 {[%clk 1:30:56]}  c5 {[%clk 1:30:17]} 2. Nf3 {[%clk 1:31:22]}  e6 {[%clk 1:30:36]} 3. d4 {[%clk 1:31:45]}  cxd4 {[%clk 1:31:02]}
4. Nxd4 {[%clk 1:32:10]}  Nc6 {[%clk 1:31:27]} 5. Nc3 {[%clk 1:31:26]}  d6 {[%clk 1:31:20]} 6. Be3 {[%clk 1:30:42]}  Nge7 {[%clk 1:31:05]}
7. f4 {[%clk 1:26:16]}  a6 {[%clk 1:28:31]} 8. g4 {[%clk 1:13:26]}  h6 {[%clk 1:27:01]} 9. Qf3 {[%clk 1:10:12]}  Nxd4 {[%clk 1:22:26]}
10. Bxd4 {[%clk 1:10:02]}  Nc6 {[%clk 1:22:48]} 11. Be3 {[%clk 1:09:23]}  Qc7 {[%clk 1:21:37]} 12. O-O-O {[%clk 1:08:19]}  b5 {[%clk 1:21:46]}
13. Kb1 {[%clk 1:05:05]}  Bb7 {[%clk 1:20:07]} 14. Qf2 {[%clk 1:03:28]}  Rc8 {[%clk 1:18:48]} 15. h4 {[%clk 0:59:02]}  Be7 {[%clk 1:16:34]}
16. Bg2 {[%clk 0:58:41]}  Bf6 {[%clk 1:16:30]} 17. e5 {[%clk 0:58:37]}  dxe5 {[%clk 1:16:42]} 18. g5 {[%clk 0:52:08]}  Be7 {[%clk 1:06:05]}
19. f5 {[%clk 0:50:27]}  Nd8 {[%clk 0:57:24]} 20. Bb6 {[%clk 0:44:52]}  Qb8 {[%clk 0:57:34]} 21. f6 {[%clk 0:41:28]}  gxf6 {[%clk 0:57:57]}
22. gxf6 {[%clk 0:41:45]}  Bb4 {[%clk 0:56:22]} 23. Qd2 {[%clk 0:28:12]}  Bd5 {[%clk 0:51:35]} 24. Be3 {[%clk 0:32:26]}  Bxc3 {[%clk 0:36:29]}
25. bxc3 {[%clk 0:32:50]}  Qb7 {[%clk 0:36:43]} 26. Rhg1 {[%clk 0:28:44]}  e4 {[%clk 0:34:38]} 27. Rde1 {[%clk 0:23:27]}  Qc6 {[%clk 0:26:48]}
28. Bd4 {[%clk 0:23:40]}  Qc4 {[%clk 0:26:58]} 29. Kc1 {[%clk 0:21:53]}  Qxa2 {[%clk 0:24:47]} 30. Qf4 {[%clk 0:18:25]}  Nc6 {[%clk 0:17:51]}
31. Qd6 {[%clk 0:16:25]}  Rd8 {[%clk 0:16:45]} 32. Qc5 {[%clk 0:16:06]}  Rg8 {[%clk 0:11:02]} 33. Bh3 {[%clk 0:09:15]}  Rxg1 {[%clk 0:09:46]}
34. Rxg1 {[%clk 0:09:44]}  Qa1+ {[%clk 0:09:54]} 35. Kd2 {[%clk 0:10:13]}  e3+ {[%clk 0:10:17]} 36. Bxe3 {[%clk 0:10:13]}  Bf3+ {[%clk 0:10:41]}
37. Bd4 {[%clk 0:09:32]}  Qxg1 {[%clk 0:11:02]} 0-1

[Event "2026 European Womens Championship"]
[Site "Batumi, GE"]
[Date "2026.06.02"]
[Round "8"]
[White "Khurtsilava, Inga"]
[Black "Tsiganova, Monika"]
[Result "1-0"]
[Board "54"]
[TimeControl "5400+30"]
[WhiteFideId "13600419"]
[BlackFideId "4500199"]
[WhiteElo "2175"]
[BlackElo "2039"]
[WhiteTitle "WGM"]
[BlackTitle "WIM"]
[WhiteClock "0:28:17"]
[BlackClock "0:01:53"]
[Variant "Standard"]

1. Nf3 {[%clk 1:30:54]}  Nf6 {[%clk 1:30:40]} 2. d4 {[%clk 1:31:12]}  g6 {[%clk 1:30:41]} 3. c4 {[%clk 1:31:33]}  Bg7 {[%clk 1:31:03]}
4. Nc3 {[%clk 1:32:00]}  O-O {[%clk 1:31:08]} 5. e4 {[%clk 1:32:28]}  d6 {[%clk 1:31:19]} 6. h3 {[%clk 1:32:25]}  Nbd7 {[%clk 1:31:01]}
7. Be3 {[%clk 1:32:43]}  e5 {[%clk 1:30:56]} 8. d5 {[%clk 1:33:05]}  a6 {[%clk 1:28:03]} 9. g4 {[%clk 1:32:15]}  Ne8 {[%clk 1:18:46]}
10. Bd3 {[%clk 1:30:35]}  Nc5 {[%clk 1:17:10]} 11. Bc2 {[%clk 1:27:44]}  a5 {[%clk 1:15:27]} 12. Qd2 {[%clk 1:26:32]}  Bd7 {[%clk 1:14:29]}
13. O-O-O {[%clk 1:24:48]}  a4 {[%clk 1:12:30]} 14. Rdg1 {[%clk 1:21:14]}  f6 {[%clk 1:05:48]} 15. h4 {[%clk 1:21:01]}  Qc8 {[%clk 1:05:23]}
16. Nh2 {[%clk 1:17:49]}  Rf7 {[%clk 1:02:56]} 17. f3 {[%clk 1:14:19]}  b5 {[%clk 0:55:59]} 18. cxb5 {[%clk 1:11:54]}  Qb8 {[%clk 0:55:29]}
19. h5 {[%clk 1:10:13]}  g5 {[%clk 0:52:21]} 20. h6 {[%clk 1:09:46]}  Bf8 {[%clk 0:51:29]} 21. Nf1 {[%clk 1:08:05]}  Bxb5 {[%clk 0:51:06]}
22. Nxb5 {[%clk 1:01:43]}  Qxb5 {[%clk 0:51:25]} 23. Qc3 {[%clk 1:01:47]}  c6 {[%clk 0:38:12]} 24. Bxc5 {[%clk 0:59:19]}  Qxc5 {[%clk 0:33:01]}
25. Qxc5 {[%clk 0:53:05]}  dxc5 {[%clk 0:33:07]} 26. Ne3 {[%clk 0:49:10]}  c4 {[%clk 0:22:58]} 27. Nxc4 {[%clk 0:47:33]}  Bc5 {[%clk 0:20:52]}
28. Rd1 {[%clk 0:47:10]}  cxd5 {[%clk 0:20:08]} 29. Rxd5 {[%clk 0:47:16]}  Rc7 {[%clk 0:20:16]} 30. b3 {[%clk 0:44:59]}  Bd4 {[%clk 0:11:59]}
31. Kd2 {[%clk 0:45:06]}  Kf7 {[%clk 0:12:15]} 32. Kd3 {[%clk 0:44:55]}  Ra6 {[%clk 0:12:09]} 33. bxa4 {[%clk 0:43:41]}  Rxc4 {[%clk 0:09:05]}
34. Kxc4 {[%clk 0:43:39]}  Rc6+ {[%clk 0:09:22]} 35. Kd3 {[%clk 0:43:22]}  Rc3+ {[%clk 0:09:31]} 36. Kd2 {[%clk 0:43:35]}  Ke7 {[%clk 0:05:10]}
37. Bd3 {[%clk 0:34:47]}  Ra3 {[%clk 0:04:41]} 38. Rc1 {[%clk 0:31:01]}  Rxa2+ {[%clk 0:03:05]} 39. Rc2 {[%clk 0:31:27]}  Rxa4 {[%clk 0:02:48]}
40. Bb5 {[%clk 0:31:53]}  Ra3 {[%clk 0:02:06]} 41. Rd7+ {[%clk 0:31:12]}  Kf8 {[%clk 0:02:06]} 42. Rd8 {[%clk 0:30:58]}  Rxf3 {[%clk 0:01:53]}
43. Rc7 {[%clk 0:28:17]} 1-0